[Event "45th FIDE Womens Olympiad 2024"]
[Site "Budapest"]
[Date "2024.09.15"]
[Round "5.5"]
[White "Gaal, Zsoka"]
[Black "Narva, Mai"]
[Result "1-0"]
[ECO "E18"]
[WhiteElo "2385"]
[BlackElo "2420"]
[Annotator "TA"]
[PlyCount "117"]
[EventDate "2024.09.05"]
[EventType "team-tourn"]
[EventCountry "HUN"]
[SourceTitle "playchess.com"]
[Source "ChessBase"]
[SourceQuality "1"]
[WhiteTeam "Hungary"]
[BlackTeam "Estonia"]
[WhiteTeamCountry "HUN"]
[BlackTeamCountry "EST"]
[TimeControl "40/5400+30:1800+30"]

{[%evp 38,117,101,95,76,82,87,78,82,97,111,117,123,69,66,30,11,0,0,0,0,0,21,24,27,18,15,0,0,0,0,0,0,0,449,413,382,377,545,541,538,266,268,283,507,435,454,448,479,467,472,473,483,483,473,471,465,461,461,446,602,602,602,593,602,602,594,587,587,562,541,514,808,805,809,795,768,754,805,805,764,663]} 1. Nf3 {[%emt 0:00:09]} Nf6 {[%emt 0:00:22]} 2. c4 {[%emt 0:00:12]} e6 {[%emt 0:00:51]} 3. g3 {[%emt 0:00:16]} b6 {[%emt 0:00:30]} 4. Bg2 {[%emt 0:00:47]} Bb7 {[%emt 0:00:13]} 5. O-O {[%emt 0:00:36]} Be7 {[%emt 0:00:23]} 6. d4 {[%emt 0:02:15]} d5 {[%emt 0:02:09]} 7. cxd5 {[%emt 0:02:15]} exd5 {[%emt 0:01:06]} 8. Nc3 {[%emt 0:01:20]} O-O {[%emt 0:00:27]} 9. Bf4 {[%emt 0:04:58]} Nbd7 {[%emt 0:00:31]} 10. Rc1 {[%emt 0:09:23]} c6 {[%emt 0:00:36] E18: Queen's Indian: Old Main Line (4 g3 Bb7 5 Bg2 Be7 6 0-0 0-0 7 Nc3).} 11. Qc2 {[%emt 0:05:45]} Re8 {[%emt 0:06:10]} 12. h4 {[%emt 0:05:01]} Bb4 {[%emt 0:09:52]} 13. e3 {[%emt 0:11:00]} h6 {[%emt 0:05:11]} 14. Rfd1 {[%emt 0:04:20]} Bxc3 $146 {[%emt 0:07:30]} ({Predecessor:} 14... Nf8 15. Qa4 Bxc3 16. bxc3 b5 17. Qb3 Ne6 18. a4 a6 19. Ne1 Ne4 20. Nd3 {½-½ Zakharov,O (2291)-Abbey,W (2164) BI-2015-P-0000}) 15. bxc3 {[%emt 0:01:42]} Ne4 {[%emt 0:13:12]} 16. c4 {[%emt 0:03:48]} Ndf6 {[%emt 0:19:43]} 17. cxd5 {[%emt 0:08:25]} cxd5 {[%emt 0:00:28]} 18. Qc7 {[%emt 0:07:15]} Qe7 {[%emt 0:03:17]} 19. Bh3 {[%emt 0:01:26]} Ba6 {[%emt 0:02:24]} (19... Qxc7 $1 $11 20. Rxc7) 20. Qxe7 $16 {[%emt 0:01:09]} Rxe7 {[%emt 0:00:05]} 21. Ne5 {[%emt 0:00:19]} Be2 {[%emt 0:06:20]} 22. Re1 {[%emt 0:03:01]} Bb5 {[%emt 0:00:13]} 23. f3 {[%emt 0:05:03]} Nd2 {[%emt 0:01:01]} 24. e4 {[%emt 0:00:45]} Nc4 {[%emt 0:10:12]} 25. Nxc4 {[%emt 0:02:03]} (25. a4 $16 Bxa4 26. Nxc4 dxc4 27. Rxc4) 25... Bxc4 $14 {[%emt 0:00:24]} 26. Bd6 {[%emt 0:00:33]} Rb7 {[%emt 0:01:28]} 27. e5 {[%emt 0:03:06]} Ne8 {[%emt 0:01:09]} 28. a4 {[%emt 0:03:02]} Nxd6 {[%emt 0:04:27]} 29. exd6 {[%emt 0:00:06]} b5 {[%emt 0:00:28]} 30. Re7 {[%emt 0:03:00]} Rb6 $1 {[%emt 0:02:17]} 31. d7 {[%emt 0:01:56]} (31. axb5 {simplifies} Rxd6 32. Bf1 a6 33. Ra1) 31... Kf8 {[%emt 0:00:11]} 32. Rce1 {[%emt 0:00:40]} Rbb8 {[%emt 0:00:05]} 33. axb5 {[%emt 0:01:15]} Bxb5 {[%emt 0:00:20]} 34. R7e5 {[%emt 0:01:04]} Bc4 {[%emt 0:00:48]} 35. Bf5 {[%emt 0:01:56]} a5 $2 {[%emt 0:01:16][%mdl 8192] [#]} (35... Rd8 $11 {and Black stays safe.}) 36. Bc2 $1 $18 {[%emt 0:00:41]} Bb5 {[%emt 0:02:17]} (36... a4 37. Bxa4 g6 38. Re8+ (38. Bc6 Rd8 $18) 38... Kg7 39. Rxb8 (39. Bc6 Rd8 $18) 39... Rxb8 40. Re8 Rb1+ 41. Kf2 Rb2+ 42. Ke1 Rb1+ 43. Kd2 (43. Bd1 Bb5 $18) 43... Rb2+ 44. Kc3) 37. Rxd5 {[%emt 0:00:16]} Bc4 {[%emt 0:00:17]} (37... Bc6 $142 38. Rd6 Bxf3) 38. Rc5 $18 {[%emt 0:01:26]} Be6 {[%emt 0:00:22]} 39. Ba4 {[%emt 0:00:17]} (39. Rxe6 $142 {[%cal Oe6a6] Ra6! is the strong threat.} fxe6 40. Be4) 39... Rd8 $18 {[%emt 0:00:40]} 40. Rc7 {[%emt 0:00:11]} g6 $2 {[%emt 0:00:43]} (40... Rab8 41. Bc6 Ke7) 41. Re5 {[%emt 0:35:01]} Ke7 {[%emt 0:06:02]} 42. d5 {[%emt 0:00:00]} Kd6 {[%emt 0:04:19]} 43. dxe6 {[%emt 0:00:00]} Kxc7 {[%emt 0:00:35]} 44. e7 {[%emt 0:00:00]} (44. exf7 Rf8 $16) 44... Rxd7 {[%emt 0:00:27]} 45. Rc5+ {[%emt 0:00:00]} (45. e8=B Kd6 $16) (45. e8=N+ Kc8 $18) (45. e8=Q Rxe8 46. Rxe8 Rd4 $18) 45... Kd6 {[%emt 0:01:04] [#]} 46. Rd5+ $1 {[%emt 0:00:00]} (46. Rxa5 Rxa5 (46... Re8 47. Bxd7 Kxd7 48. h5 $11) 47. e8=Q (47. e8=R $2 Rxa4 48. Kh2 Rc7 $19) 47... Rxa4 $14) 46... Kxe7 {[%emt 0:05:03]} ({Of course not} 46... Kxd5 47. Bxd7 Ke5 (47... h5 $2 48. e8=Q $18) 48. e8=Q+ (48. e8=R+ Rxe8 49. Bxe8 Ke6 $18)) 47. Rxd7+ {[%emt 0:00:00]} ({Less strong is} 47. Bxd7 a4 $18 (47... Rd8 $2 48. Bc6 $18)) 47... Ke6 {[%emt 0:00:05]} 48. Rb7 {[%emt 0:00:00]} f5 {[%emt 0:01:15]} 49. Rb6+ {[%emt 0:00:00]} Kf7 {[%emt 0:00:42]} 50. Kf2 {[%emt 0:00:00]} Rc8 {[%emt 0:00:27]} 51. Rb5 {[%emt 0:00:00]} Ra8 {[%emt 0:00:17]} 52. Ke3 {[%emt 0:00:00]} Ra6 {[%emt 0:00:11]} 53. Rc5 {[%emt 0:00:00]} Re6+ {[%emt 0:00:34]} 54. Kf2 {[%emt 0:00:00]} Kf6 {[%emt 0:00:21]} (54... Ra6 $142 55. h5 gxh5 56. Rxf5+ Kg6) 55. Rxa5 $18 {[%emt 0:00:00]} Rb6 {[%emt 0:00:55]} 56. Rc5 {[%emt 0:00:00]} Rb4 {[%emt 0:00:05]} 57. Rc6+ {[%emt 0:00:00]} Kg7 {[%emt 0:00:14]} 58. Bc2 {[%emt 0:00:00]} Rb5 {[%emt 0:00:05]} 59. g4 {[%emt 0:00:00]} 1-0

[Event "45th FIDE Womens Olympiad 2024"]
[Site "Budapest"]
[Date "2024.09.15"]
[Round "5.5"]
[White "Ahmed, Najla"]
[Black "Shipindo, Rauha"]
[Result "1-0"]
[ECO "C54"]
[WhiteElo "1539"]
[BlackElo "1681"]
[PlyCount "119"]
[EventDate "2024.09.05"]
[EventType "team-tourn"]
[EventCountry "HUN"]
[WhiteTeam "Bahrain"]
[BlackTeam "Namibia"]
[WhiteTeamCountry "BHN"]
[BlackTeamCountry "NAM"]
[TimeControl "40/5400+30:1800+30"]

1. e4 e5 2. Bc4 Bc5 3. Nf3 Nc6 4. c3 Nf6 5. d3 d6 6. h3 h6 7. O-O O-O 8. Nbd2 Be6 9. Bb5 Ne7 10. Ba4 Ng6 11. Bc2 Nh7 12. d4 Bb6 13. Re1 Ng5 14. Nxg5 Qxg5 15. Nf3 Qe7 16. Be3 Rad8 17. a4 a5 18. d5 Bxe3 19. fxe3 Bd7 20. Qe2 c6 21. c4 cxd5 22. cxd5 Rc8 23. Bd3 Rc5 24. Qd2 Rfc8 25. b4 axb4 26. Qxb4 Rc3 27. Ra3 R3c7 28. Kh1 Nh4 29. Nd2 Qg5 30. Re2 Rc1+ 31. Kh2 Re1 32. Rf2 Qxe3 33. Rf1 Rxf1 34. Bxf1 Qf4+ 35. Rg3 Rc2 36. Qxb7 Bxh3 37. Kxh3 Rxd2 38. Qc8+ Kh7 39. Qd8 Ng6 40. Rf3 Qxe4 41. Rxf7 Nf4+ 42. Rxf4 Qxf4 43. Qa5 Rd4 44. Qe1 Re4 45. Bd3 Qg4+ 46. Kh2 Qf4+ 47. Kh1 Qg5 48. Qxe4+ g6 49. Qxg6+ Qxg6 50. Bxg6+ Kxg6 51. a5 e4 52. a6 e3 53. Kg1 Kf5 54. a7 Ke4 55. a8=Q Kd3 56. Kf1 Kd4 57. Ke2 Ke4 58. Qe8+ Kxd5 59. Qxe3 h5 60. Qg5+ 1-0

[Event "45th FIDE Womens Olympiad 2024"]
[Site "Budapest"]
[Date "2024.09.15"]
[Round "5.6"]
[White "Olde, Margareth"]
[Black "Hoang, Thanh Trang"]
[Result "0-1"]
[ECO "A90"]
[WhiteElo "2135"]
[BlackElo "2351"]
[Annotator "TA"]
[PlyCount "116"]
[EventDate "2024.09.05"]
[EventType "team-tourn"]
[EventCountry "HUN"]
[SourceTitle "playchess.com"]
[Source "ChessBase"]
[SourceQuality "1"]
[WhiteTeam "Estonia"]
[BlackTeam "Hungary"]
[WhiteTeamCountry "EST"]
[BlackTeamCountry "HUN"]
[TimeControl "40/5400+30:1800+30"]

{[%evp 12,116,22,21,24,34,37,32,42,-52,-37,-42,-52,-60,-52,-61,-38,-56,-37,-27,-38,-81,-77,-83,-79,-145,-143,-139,-144,-134,-142,-124,-98,-97,-108,-106,-93,-108,-96,-91,-93,-100,-77,-58,-66,-85,-79,-104,-88,-87,-50,-64,-64,-53,-33,-61,-4,-122,-134,-139,-120,-122,-114,-114,-98,-92,-71,-148,-171,-161,-121,-114,0,-161,-161,-158,-166,-193,-191,-437,-439,-397,-405,-704,-723,-723,-702,-5002,-697,-2582,-2152,-2405,-2077,-29977,-29975,-5181,-5089,-29986,-29987,-29987,-29988,-29988,-29989,-29989,-29990,-29991,-29990]} 1. d4 {[%emt 0:00:03]} e6 {[%emt 0:00:25]} 2. Nf3 {[%emt 0:00:37]} f5 {[%emt 0:00:41]} 3. c4 {[%emt 0:00:40]} Nf6 {[%emt 0:00:25]} 4. g3 {[%emt 0:00:10]} d5 {[%emt 0:00:47]} 5. Bg2 {[%emt 0:00:09]} Bd6 {[%emt 0:00:47]} 6. O-O {[%emt 0:00:22]} c6 {[%emt 0:01:07]} 7. Ne5 {[%emt 0:00:33]} Nbd7 {[%emt 0:06:37]} 8. Bf4 {[%emt 0:01:05][%cal Oe5c6]} Qc7 {[%emt 0:07:28][%cal Rd7e5]} 9. cxd5 {[%emt 0:20:56]} Nxd5 {[%emt 0:08:26] White is slightly better.} 10. Bc1 {[%emt 0:23:57]} (10. Bxd5 $14 exd5 11. Nd3) 10... Nxe5 $15 {[%emt 0:03:30]} 11. dxe5 {[%emt 0:01:45]} Bxe5 {[%emt 0:00:27]} 12. e4 {[%emt 0:02:57]} fxe4 {[%emt 0:02:45]} 13. Bxe4 {[%emt 0:02:04]} O-O {[%emt 0:02:58]} 14. Na3 {[%emt 0:04:07]} Nf6 {[%emt 0:09:50]} (14... b6 {keeps more tension.} 15. Nc4 Ba6 16. Qa4 Bb5) 15. Bg2 {[%emt 0:00:54]} Rd8 {[%emt 0:05:14]} 16. Qe2 {[%emt 0:02:12]} Bd4 {[%emt 0:00:49]} 17. Bg5 {[%emt 0:15:03]} e5 {[%emt 0:04:40]} 18. Kh1 {[%emt 0:05:00]} ({White should play} 18. Rfe1) 18... Bg4 $17 {[%emt 0:04:28]} 19. Qc2 {[%emt 0:01:30]} Qd7 {[%emt 0:02:59] Active counter play!} 20. Rae1 {[%emt 0:06:22]} Kh8 {[%emt 0:02:05]} 21. Nc4 {[%emt 0:02:25]} Re8 {[%emt 0:02:16]} 22. Ne3 {[%emt 0:01:31]} Be6 {[%emt 0:02:14]} 23. Bxf6 {[%emt 0:02:09]} gxf6 {[%emt 0:00:11]} 24. Be4 {[%emt 0:01:04]} Rad8 {[%emt 0:06:21]} (24... Bxa2 $2 25. b3 $18) 25. b3 {[%emt 0:02:38]} Bxe3 {[%emt 0:05:20]} 26. fxe3 {[%emt 0:00:39]} Rf8 {[%emt 0:00:46]} 27. Rd1 {[%emt 0:01:15]} Qe7 {[%emt 0:00:45]} 28. Rxd8 {[%emt 0:01:00]} Rxd8 {[%emt 0:00:27]} 29. Qf2 {[%emt 0:00:34]} Bh3 {[%emt 0:02:35]} 30. Bg2 {[%emt 0:00:29]} (30. Qxf6+ {gets mated.} Qxf6 31. Rg1 Rd2 32. Bg2 Qf2 (32... Bxg2+ $2 {leads to mate.} 33. Rxg2 Rd1+ 34. Rg1 Qf3#) 33. e4 Bxg2+ 34. Rxg2 Qxg2#) 30... Bxg2+ {[%emt 0:00:13]} 31. Kxg2 {[%emt 0:00:11][%mdl 4096] Endgame. KQR-KQR} Kg7 {[%emt 0:02:19]} 32. Qf5 {[%emt 0:00:23]} Qf7 {[%emt 0:01:19]} 33. Rf2 {[%emt 0:00:56]} Qg6 {[%emt 0:04:11]} (33... h5 $15) 34. g4 {[%emt 0:01:06]} (34. Qe6 $1 $11 Qf7 35. Qg4+ Kf8 (35... Qg6 36. Qe6 $15) 36. Qb4+ Ke8 37. h4) 34... Qxf5 {[%emt 0:02:15]} 35. gxf5 {[%emt 0:00:09] KR-KR} Kf7 {[%emt 0:01:39]} 36. Kf3 {[%emt 0:00:46]} Rd1 {[%emt 0:01:12]} 37. Rg2 {[%emt 0:00:29]} a5 {[%emt 0:01:39]} 38. Ke4 {[%emt 0:00:33]} h5 {[%emt 0:01:35]} 39. Rc2 {[%emt 0:00:20] [#]} (39. Kf3 $142) 39... Rg1 $1 {[%emt 0:00:30]} 40. Kf3 {[%emt 0:00:34]} Rf1+ {[%emt 0:02:07]} 41. Ke4 {[%emt 0:02:11]} Rg1 {[%emt 0:01:11]} (41... Rd1 $17 42. Rg2 Rh1) 42. Kf3 $1 $19 {[%emt 0:04:03] White is on the road to losing.} Rg4 {[%emt 0:02:14]} 43. h3 {[%emt 0:06:32]} Rg5 {[%emt 0:02:03]} 44. Rc5 {[%emt 0:04:31]} Rxf5+ {[%emt 0:03:02]} 45. Ke4 $2 {[%emt 0:07:31]} (45. Ke2 {only move.}) 45... Rf2 {[%emt 0:00:45]} 46. Rxa5 {[%emt 0:00:08]} Ke6 {[%emt 0:00:20] Strongly threatening ...f5+.} 47. Ra7 {[%emt 0:03:03]} (47. Kd3 $142) 47... f5+ {[%emt 0:00:21]} 48. Kd3 {[%emt 0:00:01]} e4+ {[%emt 0:01:00]} 49. Kd4 {[%emt 0:01:00]} Rd2+ {[%emt 0:00:28]} (49... Rc2 $142 50. Ra5 c5+ 51. Rxc5 Rxc5 (51... Rxa2 $2 52. Rb5 $19) 52. Kxc5 f4 53. exf4 e3 54. f5+ Kxf5) 50. Kc4 {[%emt 0:02:29]} Rc2+ {[%emt 0:04:33]} 51. Kb4 {[%emt 0:00:11] [#]} f4 $1 {[%emt 0:02:23][%mdl 512]} 52. exf4 {[%emt 0:01:56]} (52. Ra8 fxe3) 52... e3 {[%emt 0:00:08]} 53. Ra8 {[%emt 0:00:03]} Kf7 {[%emt 0:00:38] ( -> ...e2)} 54. Rh8 {[%emt 0:00:57]} e2 {[%emt 0:00:12] Black mates.} 55. Rh7+ {[%emt 0:00:03]} Kf6 {[%emt 0:00:13]} 56. Rh6+ {[%emt 0:00:03]} Kf5 {[%emt 0:00:11]} 57. Rxh5+ {[%emt 0:00:04]} Kxf4 {[%emt 0:00:10]} 58. Rh4+ {[%emt 0:00:05]} Ke5 {[%emt 0:00:22] Weighted Error Value: White=0.71/Black=0.22 (precise) .  Mistake:       	White=6     	Black=2      Inaccurate:     	White=2     	Black=1      OK:         	White=11    	Black=14     Best:        	White=1     	Black=3      Strong:       	White=1     	Black=1} 0-1

[Event "45th FIDE Womens Olympiad 2024"]
[Site "Budapest"]
[Date "2024.09.15"]
[Round "5.6"]
[White "Nepando, Jolly"]
[Black "Almusawi, Maram"]
[Result "1-0"]
[ECO "B01"]
[WhiteElo "1646"]
[BlackElo "1510"]
[PlyCount "73"]
[EventDate "2024.09.05"]
[EventType "team-tourn"]
[EventCountry "HUN"]
[WhiteTeam "Namibia"]
[BlackTeam "Bahrain"]
[WhiteTeamCountry "NAM"]
[BlackTeamCountry "BHN"]
[TimeControl "40/5400+30:1800+30"]

1. e4 d5 2. exd5 Qxd5 3. Nc3 Qa5 4. Nf3 Nf6 5. d3 c6 6. Bd2 Qc7 7. Be2 Bf5 8. Nh4 Bg6 9. Nxg6 hxg6 10. g3 e6 11. Ne4 Nxe4 12. dxe4 Nd7 13. Bd3 Bc5 14. Qe2 Qb6 15. Bc3 Nf6 16. a3 Bd4 17. Bxd4 Qxd4 18. c3 Qb6 19. O-O-O O-O-O 20. Bc2 Rxd1+ 21. Bxd1 Nd7 22. Bc2 Ne5 23. f4 Nd7 24. Rd1 Rd8 25. f5 gxf5 26. exf5 e5 27. Qg4 Qe3+ 28. Kb1 Qh6 29. h4 f6 30. Bb3 Kc7 31. Be6 Nb6 32. Rxd8 Kxd8 33. Qb4 g6 34. Qd6+ Ke8 35. Qb8+ Ke7 36. Qxb7+ Kd8 37. Qb8+ 1-0

[Event "45th FIDE Womens Olympiad 2024"]
[Site "Budapest"]
[Date "2024.09.15"]
[Round "5.7"]
[White "Terbe, Julianna"]
[Black "Blokhin, Sofia"]
[Result "1-0"]
[ECO "A88"]
[WhiteElo "2245"]
[BlackElo "2036"]
[Annotator "TA"]
[PlyCount "65"]
[EventDate "2024.09.05"]
[EventType "team-tourn"]
[EventCountry "HUN"]
[SourceTitle "playchess.com"]
[Source "ChessBase"]
[SourceQuality "1"]
[WhiteTeam "Hungary"]
[BlackTeam "Estonia"]
[WhiteTeamCountry "HUN"]
[BlackTeamCountry "EST"]
[TimeControl "40/5400+30:1800+30"]

{[%evp 14,65,23,14,33,21,27,29,39,33,69,64,106,58,97,63,93,83,97,87,165,161,162,154,152,150,225,225,439,421,605,513,977,486,943,486,504,516,1285,1189,1533,926,1503,1496,29988,29989,29990,29991,29991,29977,29995,29992,29996,29997]} 1. d4 {[%emt 0:00:04]} f5 {[%emt 0:00:05]} 2. c4 {[%emt 0:00:19]} Nf6 {[%emt 0:00:10]} 3. Nf3 {[%emt 0:00:13]} g6 {[%emt 0:00:10]} 4. g3 {[%emt 0:00:21]} Bg7 {[%emt 0:00:07]} 5. Bg2 {[%emt 0:00:04]} O-O {[%emt 0:00:07]} 6. O-O {[%emt 0:00:07]} d6 {[%emt 0:00:05]} 7. Nc3 {[%emt 0:00:16]} c6 {[%emt 0:00:12][%cal Bc7c6,Bc6c5][%mdl 32]} 8. b3 {[%emt 0:01:16]} Na6 {[%emt 0:05:42]} 9. Ba3 {[%emt 0:09:34]} Ne4 {[%emt 0:16:50]} 10. Qc2 {[%emt 0:09:44]} Nxc3 {[%emt 0:09:17] White has an edge.} 11. Qxc3 {[%emt 0:00:08]} c5 {[%emt 0:02:58]} 12. Rad1 {[%emt 0:11:26]} Qb6 {[%emt 0:16:02] [#]} 13. Qd2 {[%emt 0:13:39]} ({Better is} 13. Qe3 $1 $16) 13... Bd7 {[%emt 0:06:22]} 14. d5 {[%emt 0:05:09]} Qd8 {[%emt 0:03:01] [#]} 15. e4 $1 {[%emt 0:06:09]} fxe4 {[%emt 0:01:36]} 16. Ng5 {[%emt 0:00:27]} h6 {[%emt 0:06:03] [#]} (16... Nc7 $16 {keeps fighting.}) 17. Ne6 $1 $18 {[%emt 0:02:12]} (17. Nxe4 Rf7 $16) 17... Bxe6 {[%emt 0:00:40]} 18. dxe6 {[%emt 0:00:05]} Rb8 {[%emt 0:04:10]} 19. Bxe4 {[%emt 0:01:37][%cal Bg2e4,Be4g6,Bg6f7][%mdl 32] White is more active.} Qc8 {[%emt 0:01:24] Black is weak on the light squares} (19... Qe8 $16 20. Qc2 Kh7) 20. Rde1 {[%emt 0:06:38]} b5 $2 {[%emt 0:07:01]} (20... Qe8 21. Qd3 Kh7) 21. Bxg6 {[%emt 0:04:56] Bb2 is the strong threat.} bxc4 {[%emt 0:00:27]} (21... Nc7 $142 22. Bf7+ Rxf7) 22. Bf7+ {[%emt 0:00:40]} Kh7 {[%emt 0:01:59]} (22... Rxf7 $142 23. exf7+ Kxf7 24. Qf4+ (24. bxc4 Qf5 $18) 24... Bf6) 23. Qc2+ {[%emt 0:00:45]} Kh8 {[%emt 0:00:07]} 24. Qxc4 {[%emt 0:00:24]} Nb4 {[%emt 0:02:57]} 25. Bc1 {[%emt 0:06:38]} Nxa2 {[%emt 0:02:18] [#]} (25... Rg8 $142 26. Qh4 Qf8) 26. Bxh6 $1 {[%emt 0:05:20][%mdl 512]} Bxh6 {[%emt 0:01:34]} (26... Rxf7 27. exf7) 27. Qh4 {[%emt 0:00:06][%csl LRe7,LRh6][%cal Rh4h6]} Rxf7 {[%emt 0:04:40]} 28. exf7 {[%emt 0:00:06]} Qf8 {[%emt 0:00:05]} 29. Rxe7 {[%emt 0:00:21] White mates.} Rb4 {[%emt 0:02:01]} 30. Qf6+ {[%emt 0:01:44]} Kh7 {[%emt 0:01:52]} 31. Re8 {[%emt 0:00:50]} Qg7 {[%emt 0:02:12]} 32. Qf5+ {[%emt 0:01:23]} (32. f8=B $2 {is the wrong capture.} Qxf6 33. Bxh6 Kxh6 $19) 32... Qg6 {[%emt 0:00:06] [#]} 33. Rh8+ $3 {[%emt 0:00:05][%mdl 512] Black did not feel at home in the position after the opening.   Weighted Error Value: White=0.33/Black=0.71.  Mistake:       	White=1     	Black=6      Inaccurate:     	White=1     	Black=5      OK:         	White=6     	Black=3      Strong:       	White=1     	---        Brilliant:      	White=1     	---} 1-0

[Event "45th FIDE Womens Olympiad 2024"]
[Site "Budapest"]
[Date "2024.09.15"]
[Round "5.7"]
[White "Yaqoob, Wafa"]
[Black "Van Wyk, Keisha C"]
[Result "1-0"]
[ECO "B21"]
[WhiteElo "1438"]
[BlackElo "1599"]
[PlyCount "71"]
[EventDate "2024.09.05"]
[EventType "team-tourn"]
[EventCountry "HUN"]
[WhiteTeam "Bahrain"]
[BlackTeam "Namibia"]
[WhiteTeamCountry "BHN"]
[BlackTeamCountry "NAM"]
[TimeControl "40/5400+30:1800+30"]

1. e4 c5 2. d4 cxd4 3. c3 g6 4. Nf3 Nc6 5. Bc4 Bg7 6. cxd4 e6 7. Nc3 Qb6 8. Nb5 Na5 9. Bd3 a6 10. Nc3 Ne7 11. O-O O-O 12. e5 Nac6 13. Bc2 Nb4 14. Bb3 d6 15. Bf4 d5 16. Qd2 Nbc6 17. Rac1 Nf5 18. Rfd1 Bd7 19. Na4 Qd8 20. Nc5 Rb8 21. h3 Qe7 22. g4 Nh4 23. Nxh4 Qxh4 24. Nxd7 Qxh3 25. Qe2 h5 26. Rc3 Qh4 27. Bg3 Qg5 28. f4 Qd8 29. Nxb8 Nxb8 30. gxh5 Nc6 31. Qh2 g5 32. h6 Kh7 33. hxg7+ Kxg7 34. Qh5 gxf4 35. Bxf4 Rg8 36. Qh6# 1-0